fUST/lending_fUST_20250514
["ID","MTS","AMOUNT","RATE_DAILY","PERIOD"]
[360979064,1747177854247,-400.0,0.00013972,2]
[360979065,1747177854258,-400.0,0.00013972,2]
[360979066,1747177854268,-1019.88,0.00013972,2]
[360979067,1747177854277,-721.78,0.00013972,2]
[360979068,1747177854287,-553.76,0.00013972,2]
[360979069,1747177854297,-400.0,0.00013972,2]
[360979070,1747177854307,-1280.33,0.00013972,2]
[360979071,1747177854318,-400.0,0.00013972,2]
[360979072,1747177854328,-500.0,0.00013973,2]
[360979073,1747177854337,-431.17784606,0.00013973,2]
[360979074,1747177854347,-500.0,0.00013973,2]
[360979075,1747177854356,-500.0,0.00013973,2]
[360979076,1747177854366,-518.96642368,0.00013973,2]
[360979077,1747177854376,-500.0,0.00013973,2]
[360979078,1747177854387,-500.45413936,0.00013973,2]
[360979079,1747177854397,-500.0,0.00013973,2]
[360979080,1747177854406,-500.0,0.00013973,2]
[360979081,1747177854416,-500.0,0.00013973,2]
[360979082,1747177854426,-500.0,0.00013973,2]
[360979083,1747177854436,-500.0,0.00013973,2]
[360979084,1747177854446,-500.0,0.00013973,2]
[360979085,1747177854457,-163.94816,0.00013973,2]
[360979086,1747177854467,-151.0,0.00013973,2]
[360979087,1747177854477,-500.0,0.00014,2]
[360979088,1747177854486,-500.0,0.00014116,2]
[360979089,1747177854496,-160.0,0.00014132,2]
[360979090,1747177854505,-160.0,0.00014132,2]
[360979091,1747177854515,-160.0,0.00014132,2]
[360979092,1747177854526,-422.24190663,0.00014132,2]
[360979093,1747177854536,-160.0,0.00014132,2]
[360979094,1747177854545,-160.0,0.00014132,2]
[360979095,1747177854555,-151.0,0.00014246,2]
[360979096,1747177854564,-151.0,0.00014246,2]
[360979097,1747177854574,-151.0,0.00014246,2]
[360979098,1747177854583,-400.0,0.00014246,2]
[360979099,1747177854593,-400.0,0.00014246,2]
[360979100,1747177854602,-565.52,0.00014246,2]
[360979101,1747177854612,-400.0,0.00014246,2]
[360979102,1747177854622,-400.0,0.00014246,2]
[360979103,1747177854631,-400.0,0.00014246,2]
[360979104,1747177854641,-573.02,0.00014246,2]
[360979105,1747177854650,-400.0,0.00014246,2]
[360979106,1747177854659,-400.0,0.00014246,2]
[360979107,1747177854670,-241.61426164,0.00014246,2]
[360979108,1747177854679,-400.0,0.00014246,2]
[360979109,1747177854688,-401.63,0.00014246,2]
[360979110,1747177854698,-151.0,0.00014246,2]
[360979111,1747177854709,-151.0,0.00014246,2]
[360979112,1747177854719,-151.0,0.00014246,2]
[360979113,1747177854729,-151.0,0.00014246,2]
[360979114,1747177854739,-276.665474,0.00014246,2]
[360979115,1747177854749,-151.0,0.00014246,2]
[360979116,1747177854759,-151.0,0.00014246,2]
[360979117,1747177854768,-151.0,0.00014246,2]
[360979118,1747177854778,-400.0,0.00014246,2]
[360979119,1747177854791,-690.33,0.00014246,2]
[360979120,1747177854800,-400.0,0.00014246,2]
[360979121,1747177854810,-151.0,0.00014246,2]
[360979122,1747177854820,-151.0,0.00014246,2]
[360979123,1747177854830,-151.0,0.00014246,2]
[360979124,1747177854839,-400.0,0.00014246,2]
[360979125,1747177854849,-522.39,0.00014246,2]
[360979126,1747177854859,-400.0,0.00014246,2]
[360979127,1747177854870,-449.03,0.00014246,2]
[360979128,1747177854880,-712.47,0.00014246,2]
[360979129,1747177854890,-400.0,0.00014246,2]
[360979130,1747177854899,-400.0,0.00014246,2]
[360979131,1747177854909,-400.0,0.00014246,2]
[360979132,1747177854919,-400.0,0.00014246,2]
[360979133,1747177854929,-400.0,0.00014246,2]
[360979134,1747177854939,-400.0,0.00014246,2]
[360979135,1747177854949,-203.3714078,0.00014246,2]
[360979136,1747177854959,-400.0,0.00014246,2]
[360979137,1747177854969,-400.0,0.00014246,2]
[360979138,1747177854979,-461.11,0.00014246,2]
[360979139,1747177854988,-400.0,0.00014246,2]
[360979140,1747177854998,-400.0,0.00014246,2]
[360979141,1747177855008,-231.70798548,0.00014246,2]
[360979142,1747177855019,-400.0,0.00014246,2]
[360979143,1747177855029,-400.0,0.00014246,2]
[360979144,1747177855038,-400.0,0.00014246,2]
[360979145,1747177855048,-400.0,0.00014246,2]
[360979146,1747177855058,-151.0,0.00014246,2]
[360979147,1747177855068,-151.0,0.00014246,2]
[360979148,1747177855078,-151.0,0.00014246,2]
[360979149,1747177855088,-400.0,0.00014246,2]
[360979150,1747177855098,-475.74315395,0.00014246,2]
[360979151,1747177855108,-400.0,0.00014246,2]
[360979152,1747177855118,-400.0,0.00014246,2]
[360979153,1747177855127,-400.0,0.00014246,2]
[360979154,1747177855137,-186.65622312,0.00014246,2]
[360979155,1747177855147,-400.0,0.00014246,2]
[360979156,1747177855156,-476.26,0.00014246,2]
[360979157,1747177855166,-400.0,0.00014246,2]
[360979158,1747177855176,-400.0,0.00014246,2]
[360979159,1747177855186,-400.0,0.00014246,2]
[360979160,1747177855196,-400.0,0.00014246,2]
[360979161,1747177855207,-400.0,0.00014246,2]
[360979162,1747177855216,-555.18,0.00014246,2]
[360979163,1747177855226,-636.1,0.00014246,2]
[360979164,1747177855236,-400.0,0.00014246,2]
[360979165,1747177855246,-400.0,0.00014246,2]
[360979166,1747177855257,-332.4926893,0.00014246,2]
[360979167,1747177855267,-400.0,0.00014246,2]
[360979168,1747177855277,-400.0,0.00014246,2]
[360979169,1747177855287,-465.33,0.00014246,2]
[360979170,1747177855297,-400.0,0.00014246,2]
[360979171,1747177855307,-400.0,0.00014246,2]
[360979172,1747177855318,-400.0,0.00014246,2]
[360979173,1747177855327,-400.0,0.00014246,2]
[360979174,1747177855337,-400.0,0.00014246,2]
[360979175,1747177855348,-400.0,0.00014246,2]
[360979176,1747177855358,-400.0,0.00014246,2]
[360979177,1747177855368,-400.0,0.00014246,2]
[360979178,1747177855378,-1094.46,0.00014246,2]
[360979179,1747177855387,-939.57,0.00014246,2]
[360979180,1747177855399,-666.61,0.00014246,2]
[360979181,1747177855409,-151.0,0.00014246,2]
[360979182,1747177855419,-170.362952,0.00014246,2]
[360979183,1747177855429,-400.0,0.00014246,2]
[360979184,1747177855439,-400.0,0.00014246,2]
[360979185,1747177855449,-400.0,0.00014246,2]
[360979186,1747177855460,-216.0,0.00014246,2]
[360979187,1747177855471,-1322.6,0.00014246,2]
[360979188,1747177855480,-400.0,0.00014246,2]
[360979189,1747177855490,-400.0,0.00014246,2]
[360979190,1747177855501,-400.0,0.00014246,2]
[360979191,1747177855510,-400.0,0.00014246,2]
[360979192,1747177855520,-405.7,0.00014246,2]
[360979193,1747177855530,-527.59420263,0.00014246,2]
[360979194,1747177855539,-400.0,0.00014246,2]
[360979195,1747177855549,-431.95490031,0.00014246,2]
[360979196,1747177855559,-400.0,0.00014246,2]
[360979197,1747177855568,-836.51,0.00014246,2]
[360979198,1747177855578,-695.87,0.00014246,2]
[360979199,1747177855588,-400.0,0.00014246,2]
[360979200,1747177855597,-486.96126559,0.00014246,2]
[360979201,1747177855608,-433.42,0.00014246,2]
[360979202,1747177855617,-400.0,0.00014246,2]
[360979203,1747177855627,-970.2,0.00014246,2]
[360979204,1747177855637,-400.0,0.00014246,2]
[360979205,1747177855646,-400.0,0.00014246,2]
[360979206,1747177855656,-400.0,0.00014246,2]
[360979207,1747177855666,-400.0,0.00014246,2]
[360979208,1747177855676,-400.0,0.00014246,2]
[360979209,1747177855686,-563.99,0.00014246,2]
[360979210,1747177855696,-434.24,0.00014246,2]
[360979211,1747177855707,-400.0,0.00014246,2]
[360979212,1747177855716,-400.0,0.00014246,2]
[360979213,1747177855726,-690.25,0.00014246,2]
[360979214,1747177855735,-400.0,0.00014246,2]
[360979215,1747177855746,-400.0,0.00014246,2]
[360979216,1747177855755,-405.23,0.00014246,2]
[360979217,1747177855765,-678.01,0.00014246,2]
[360979218,1747177855775,-400.0,0.00014246,2]
[360979219,1747177855788,-1470.1,0.00014246,2]
[360979220,1747177855797,-400.0,0.00014246,2]
[360979221,1747177855807,-400.0,0.00014246,2]
[360979222,1747177855817,-400.0,0.00014246,2]
[360979223,1747177855827,-593.2,0.00014246,2]
[360979224,1747177855837,-3580.97,0.00014246,2]
[360979225,1747177855847,-400.0,0.00014246,2]
[360979226,1747177855859,-400.0,0.00014246,2]
[360979227,1747177855870,-400.0,0.00014246,2]
[360979228,1747177855881,-400.0,0.00014246,2]
[360979229,1747177855893,-400.0,0.00014246,2]
[360979230,1747177855903,-400.0,0.00014246,2]
[360979231,1747177855914,-167.62209,0.00014246,2]
[360979232,1747177855924,-3328.79,0.00014246,2]
[360979233,1747177855935,-400.0,0.00014246,2]
[360979234,1747177855945,-400.0,0.00014246,2]
[360979235,1747177855954,-444.55229022,0.00014246,2]
[360979236,1747177855964,-1207.82,0.00014246,2]
[360979237,1747177855973,-400.0,0.00014246,2]
[360979238,1747177855984,-402.03,0.00014246,2]
[360979239,1747177855993,-400.0,0.00014246,2]
[360979240,1747177856003,-640.47,0.00014246,2]
[360979241,1747177856013,-400.0,0.00014246,2]
[360979242,1747177856022,-1023.24,0.00014246,2]
[360979243,1747177856034,-422.14,0.00014246,2]
[360979244,1747177856044,-400.0,0.00014246,2]
[360979245,1747177856054,-400.0,0.00014246,2]
[360979246,1747177856065,-820.66,0.00014246,2]
[360979247,1747177856076,-3133.11,0.00014246,2]
[360979248,1747177856087,-787.2,0.00014246,2]
[360979249,1747177856097,-805.4,0.00014246,2]
[360979250,1747177856108,-449.51,0.00014246,2]
[360979251,1747177856118,-400.0,0.00014246,2]
[360979252,1747177856128,-410.06,0.00014246,2]
[360979253,1747177856138,-400.0,0.00014246,2]
[360979254,1747177856149,-1712.23,0.00014246,2]
[360979255,1747177856158,-837.11,0.00014246,2]
[360979256,1747177856168,-1235.24,0.00014246,2]
[360979257,1747177856178,-400.0,0.00014246,2]
[360979258,1747177856188,-511.1,0.00014246,2]
[360979259,1747177856198,-1129.21,0.00014246,2]
[360979260,1747177856208,-400.0,0.00014246,2]
[360979261,1747177856219,-400.0,0.00014246,2]
[360979262,1747177856230,-400.0,0.00014246,2]
[360979263,1747177856239,-400.0,0.00014246,2]
[360979264,1747177856250,-727.23,0.00014246,2]
[360979265,1747177856260,-400.0,0.00014246,2]
[360979266,1747177856270,-2061.37,0.00014246,2]
[360979267,1747177856280,-1711.13,0.00014246,2]
[360979268,1747177856290,-4585.35,0.00014246,2]
[360979269,1747177856300,-1080.88,0.00014246,2]
[360979270,1747177856310,-1872.54,0.00014246,2]
[360979271,1747177856321,-1559.01,0.00014246,2]
[360979272,1747177856331,-400.0,0.00014246,2]
[360979273,1747177856341,-549.38,0.00014246,2]
[360979274,1747177856352,-400.0,0.00014246,2]
[360979275,1747177856363,-584.69,0.00014246,2]
[360979276,1747177856373,-400.0,0.00014246,2]
[360979277,1747177856382,-436.65,0.00014246,2]
[360979278,1747177856392,-400.0,0.00014246,2]
[360979279,1747177856403,-1693.16,0.00014246,2]
[360979280,1747177856413,-834.05,0.00014246,2]
[360979281,1747177856424,-400.0,0.00014246,2]
[360979282,1747177856433,-400.0,0.00014246,2]
[360979283,1747177856444,-400.0,0.00014246,2]
[360979284,1747177856455,-400.0,0.00014246,2]
[360979285,1747177856466,-400.0,0.00014246,2]
[360979286,1747177856477,-2127.68,0.00014246,2]
[360979287,1747177856488,-400.0,0.00014246,2]
[360979288,1747177856498,-400.0,0.00014246,2]
[360979289,1747177856507,-973.06,0.00014246,2]
[360979290,1747177856519,-400.0,0.00014246,2]
[360979291,1747177856529,-340.26082924,0.00014246,2]
[360979292,1747177856539,-400.0,0.00014246,2]
[360979293,1747177856549,-551.2,0.00014246,2]
[360979294,1747177856559,-413.34,0.00014246,2]
[360979295,1747177856570,-2436.09,0.00014246,2]
[360979296,1747177856816,-400.0,0.00014246,2]
[360979297,1747177856838,-410.58928928,0.00014246,2]
[360979298,1747177856848,-400.0,0.00014246,2]
[360979299,1747177856859,-400.0,0.00014246,2]
[360979300,1747177856868,-1004.96,0.00014246,2]
[360979301,1747177856878,-1824.81,0.00014246,2]
[360979302,1747177856888,-400.0,0.00014246,2]
[360979303,1747177856897,-400.0,0.00014246,2]
[360979304,1747177856907,-400.0,0.00014246,2]
[360979305,1747177856917,-408.05,0.00014246,2]
[360979306,1747177856926,-536.9,0.00014246,2]
[360979307,1747177856936,-400.0,0.00014246,2]
[360979308,1747177856945,-492.5,0.00014246,2]
[360979309,1747177856955,-1287.19,0.00014246,2]
[360979310,1747177856965,-534.83,0.00014246,2]
[360979311,1747177856975,-400.0,0.00014246,2]
[360979312,1747177856985,-379.21828668,0.00014246,2]
[360979313,1747177856994,-649.18,0.00014246,2]
[360979314,1747177857004,-7339.72,0.00014246,2]
[360979315,1747177857013,-400.0,0.00014246,2]
[360979316,1747177857024,-841.28,0.00014246,2]
[360979317,1747177857033,-400.0,0.00014246,2]
[360979318,1747177857043,-400.0,0.00014246,2]
[360979319,1747177857052,-2664.61,0.00014246,2]
[360979320,1747177857061,-1097.25,0.00014246,2]
[360979321,1747177857071,-400.0,0.00014246,2]
[360979322,1747177857081,-761.26,0.00014246,2]
[360979323,1747177857090,-400.0,0.00014246,2]
[360979324,1747177857100,-449.97,0.00014246,2]
[360979325,1747177857109,-400.0,0.00014246,2]
[360979326,1747177857119,-400.0,0.00014246,2]
[360979327,1747177857128,-492.67,0.00014246,2]
[360979328,1747177857138,-1265.85,0.00014246,2]
[360979329,1747177857148,-4308.11,0.00014246,2]
[360979330,1747177857158,-662.02,0.00014246,2]
[360979331,1747177857167,-400.0,0.00014246,2]
[360979332,1747177857178,-495.01,0.00014246,2]
[360979333,1747177857187,-400.0,0.00014246,2]
[360979334,1747177857199,-1719.35,0.00014246,2]
[360979335,1747177857212,-1791.39,0.00014246,2]
[360979336,1747177857224,-400.0,0.00014246,2]
[360979337,1747177857237,-1519.63,0.00014246,2]
[360979338,1747177857247,-400.0,0.00014246,2]
[360979339,1747177857258,-1061.19,0.00014246,2]
[360979340,1747177857268,-400.0,0.00014246,2]
[360979341,1747177857278,-400.0,0.00014246,2]
[360979342,1747177857288,-400.0,0.00014246,2]
[360979343,1747177857298,-1019.88,0.00014246,2]
[360979344,1747177857308,-721.78,0.00014246,2]
[360979345,1747177857319,-553.76,0.00014246,2]
[360979346,1747177857329,-400.0,0.00014246,2]
[360979347,1747177857339,-1280.33,0.00014246,2]
[360979348,1747177857349,-400.0,0.00014246,2]
[360979349,1747177857359,-1500.0,0.00014246,2]
[360979350,1747177857369,-160.95,0.0001442,2]
[360979351,1747177857379,-706.0,0.00014421,2]
[360979352,1747177857388,-2237.0,0.00014421,2]
[360979353,1747177857398,-2200.0,0.0001443,2]
[360979354,1747177857408,-400.0,0.0001452,2]
[360979355,1747177857418,-400.0,0.0001452,2]
[360979356,1747177857428,-565.52,0.0001452,2]
[360979357,1747177857438,-400.0,0.0001452,2]
[360979358,1747177857447,-426.00806059,0.0001452,2]
[360979359,1747177857457,-487.8639984,0.0001452,2]
[360979360,1747177857468,-573.02,0.0001452,2]
[360979361,1747177857478,-400.0,0.0001452,2]
[360979362,1747177857487,-400.0,0.0001452,2]
[360979363,1747177857497,-400.0,0.0001452,2]
[360979364,1747177857506,-401.63,0.0001452,2]
[360979365,1747177857516,-400.0,0.0001452,2]
[360979366,1747177857526,-690.33,0.0001452,2]
[360979367,1747177857536,-400.0,0.0001452,2]
[360979368,1747177857545,-400.0,0.0001452,2]
[360979369,1747177857555,-522.39,0.0001452,2]
[360979370,1747177857565,-400.0,0.0001452,2]
[360979371,1747177857574,-449.03,0.0001452,2]
[360979372,1747177857584,-712.47,0.0001452,2]
[360979373,1747177857593,-400.0,0.0001452,2]
[360979374,1747177857603,-400.0,0.0001452,2]
[360979375,1747177857613,-400.0,0.0001452,2]
[360979376,1747177857623,-400.0,0.0001452,2]
[360979377,1747177857633,-400.0,0.0001452,2]
[360979378,1747177857643,-400.0,0.0001452,2]
[360979379,1747177857653,-400.0,0.0001452,2]
[360979380,1747177857663,-400.0,0.0001452,2]
[360979381,1747177857673,-461.11,0.0001452,2]
[360979382,1747177857683,-400.0,0.0001452,2]
[360979383,1747177857693,-400.0,0.0001452,2]
[360979384,1747177857703,-400.0,0.0001452,2]
[360979385,1747177857713,-400.0,0.0001452,2]
[360979386,1747177857723,-400.0,0.0001452,2]
[360979387,1747177857733,-400.0,0.0001452,2]
[360979388,1747177857742,-400.0,0.0001452,2]
[360979389,1747177857752,-400.0,0.0001452,2]
[360979390,1747177857762,-400.0,0.0001452,2]
[360979391,1747177857772,-400.0,0.0001452,2]
[360979392,1747177857782,-400.0,0.0001452,2]
[360979393,1747177857794,-476.26,0.0001452,2]
[360979394,1747177857804,-400.0,0.0001452,2]
[360979395,1747177857814,-400.0,0.0001452,2]
[360979396,1747177857824,-400.0,0.0001452,2]
[360979397,1747177857834,-400.0,0.0001452,2]
[360979398,1747177857843,-400.0,0.0001452,2]
[360979399,1747177857853,-555.18,0.0001452,2]
[360979400,1747177857865,-636.1,0.0001452,2]
[360979401,1747177857875,-400.0,0.0001452,2]
[360979402,1747177857885,-400.0,0.0001452,2]
[360979403,1747177857895,-400.0,0.0001452,2]
[360979404,1747177857904,-400.0,0.0001452,2]
[360979405,1747177857914,-400.0,0.0001452,2]
[360979406,1747177857923,-465.33,0.0001452,2]
[360979407,1747177857932,-400.0,0.0001452,2]
[360979408,1747177857942,-400.0,0.0001452,2]
[360979409,1747177857954,-400.0,0.0001452,2]
[360979410,1747177857964,-400.0,0.0001452,2]
[360979411,1747177857973,-400.0,0.0001452,2]
[360979412,1747177857983,-400.0,0.0001452,2]
[360979413,1747177857992,-400.0,0.0001452,2]
[360979414,1747177858001,-1094.46,0.0001452,2]
[360979415,1747177858011,-939.57,0.0001452,2]
[360979416,1747177858020,-666.61,0.0001452,2]
[360979417,1747177858029,-400.0,0.0001452,2]
[360979418,1747177858039,-400.0,0.0001452,2]
[360979419,1747177858048,-400.0,0.0001452,2]
[360979420,1747177858058,-1322.6,0.0001452,2]
[360979421,1747177858067,-400.0,0.0001452,2]
[360979422,1747177858076,-400.0,0.0001452,2]
[360979423,1747177858086,-400.0,0.0001452,2]
[360979424,1747177858095,-400.0,0.0001452,2]
[360979425,1747177858105,-405.7,0.0001452,2]
[360979426,1747177858115,-400.0,0.0001452,2]
[360979427,1747177858124,-400.0,0.0001452,2]
[360979428,1747177858134,-836.51,0.0001452,2]
[360979429,1747177858144,-695.87,0.0001452,2]
[360979430,1747177858154,-400.0,0.0001452,2]
[360979431,1747177858163,-433.42,0.0001452,2]
[360979432,1747177858173,-400.0,0.0001452,2]
[360979433,1747177858183,-970.2,0.0001452,2]
[360979434,1747177858192,-400.0,0.0001452,2]
[360979435,1747177858202,-335.11113326,0.0001452,2]
[360979436,1747177858213,-400.0,0.0001452,2]
[360979437,1747177858222,-400.0,0.0001452,2]
[360979438,1747177858232,-400.0,0.0001452,2]
[360979439,1747177858241,-563.99,0.0001452,2]
[360979440,1747177858251,-434.24,0.0001452,2]
[360979441,1747177858261,-400.0,0.0001452,2]
[360979442,1747177858271,-155.55336408,0.0001452,2]
[360979443,1747177858281,-690.25,0.0001452,2]
[360979444,1747177858291,-268.21771296,0.0001452,2]
[360979445,1747177858301,-400.0,0.0001452,2]
[360979446,1747177858312,-405.23,0.0001452,2]
[360979447,1747177858323,-678.01,0.0001452,2]
[360979448,1747177858333,-400.0,0.0001452,2]
[360979449,1747177858343,-1470.1,0.0001452,2]
[360979450,1747177858353,-400.0,0.0001452,2]
[360979451,1747177858363,-400.0,0.0001452,2]
[360979452,1747177858372,-400.0,0.0001452,2]
[360979453,1747177858382,-593.2,0.0001452,2]
[360979454,1747177858392,-3580.97,0.0001452,2]
[360979455,1747177858402,-400.0,0.0001452,2]
[360979456,1747177858412,-400.0,0.0001452,2]
[360979457,1747177858421,-400.0,0.0001452,2]
[360979458,1747177858431,-400.0,0.0001452,2]
[360979459,1747177858440,-400.0,0.0001452,2]
[360979460,1747177858450,-400.0,0.0001452,2]
[360979461,1747177858460,-3328.79,0.0001452,2]
[360979462,1747177858470,-400.0,0.0001452,2]
[360979463,1747177858479,-400.0,0.0001452,2]
[360979464,1747177858489,-1207.82,0.0001452,2]
[360979465,1747177858498,-400.0,0.0001452,2]
[360979466,1747177858508,-402.03,0.0001452,2]
[360979467,1747177858517,-400.0,0.0001452,2]
[360979468,1747177858526,-640.47,0.0001452,2]
[360979469,1747177858536,-400.0,0.0001452,2]
[360979470,1747177858545,-1023.24,0.0001452,2]
[360979471,1747177858555,-422.14,0.0001452,2]
[360979472,1747177858565,-400.0,0.0001452,2]
[360979473,1747177858574,-400.0,0.0001452,2]
[360979474,1747177858584,-820.66,0.0001452,2]
[360979475,1747177858593,-3133.11,0.0001452,2]
[360979476,1747177858603,-787.2,0.0001452,2]
[360979477,1747177858614,-449.51,0.0001452,2]
[360979478,1747177858624,-805.4,0.0001452,2]
[360979479,1747177858636,-400.0,0.0001452,2]
[360979480,1747177858645,-410.06,0.0001452,2]
[360979481,1747177858655,-400.0,0.0001452,2]
[360979482,1747177858664,-1712.23,0.0001452,2]
[360979483,1747177858674,-837.11,0.0001452,2]
[360979484,1747177858683,-1235.24,0.0001452,2]
[360979485,1747177858693,-400.0,0.0001452,2]
[360979486,1747177858702,-511.1,0.0001452,2]
[360979487,1747177858711,-1129.21,0.0001452,2]
[360979488,1747177858721,-400.0,0.0001452,2]
[360979489,1747177858730,-400.0,0.0001452,2]
[360979490,1747177858740,-400.0,0.0001452,2]
[360979491,1747177858749,-400.0,0.0001452,2]
[360979492,1747177858759,-727.23,0.0001452,2]
[360979493,1747177858768,-400.0,0.0001452,2]
[360979494,1747177858778,-2061.37,0.0001452,2]
[360979495,1747177858790,-1711.13,0.0001452,2]
[360979496,1747177858799,-4585.35,0.0001452,2]
[360979497,1747177858809,-1080.88,0.0001452,2]
[360979498,1747177858818,-1872.54,0.0001452,2]
[360979499,1747177858828,-1559.01,0.0001452,2]
[360979500,1747177858838,-400.0,0.0001452,2]
[360979501,1747177858848,-549.38,0.0001452,2]
[360979502,1747177858857,-400.0,0.0001452,2]
[360979503,1747177858868,-584.69,0.0001452,2]
[360979504,1747177858879,-400.0,0.0001452,2]
[360979505,1747177858889,-436.65,0.0001452,2]
[360979506,1747177858898,-400.0,0.0001452,2]
[360979507,1747177858907,-1693.16,0.0001452,2]
[360979508,1747177858916,-834.05,0.0001452,2]
[360979509,1747177858926,-400.0,0.0001452,2]
[360979510,1747177858937,-400.0,0.0001452,2]
[360979511,1747177858946,-400.0,0.0001452,2]
[360979512,1747177858957,-400.0,0.0001452,2]
[360979513,1747177858967,-400.0,0.0001452,2]
[360979514,1747177858977,-2127.68,0.0001452,2]
[360979515,1747177858986,-400.0,0.0001452,2]
[360979516,1747177858996,-400.0,0.0001452,2]
[360979517,1747177859005,-973.06,0.0001452,2]
[360979518,1747177859015,-400.0,0.0001452,2]
[360979519,1747177859024,-400.0,0.0001452,2]
[360979520,1747177859033,-551.2,0.0001452,2]
[360979521,1747177859043,-413.34,0.0001452,2]
[360979522,1747177859052,-2436.09,0.0001452,2]
[360979523,1747177859062,-400.0,0.0001452,2]
[360979524,1747177859071,-400.0,0.0001452,2]
[360979525,1747177859081,-400.0,0.0001452,2]
[360979526,1747177859090,-1004.96,0.0001452,2]
[360979527,1747177859100,-1824.81,0.0001452,2]
[360979528,1747177859109,-400.0,0.0001452,2]
[360979529,1747177859118,-400.0,0.0001452,2]
[360979530,1747177859133,-400.0,0.0001452,2]
[360979531,1747177859142,-408.05,0.0001452,2]
[360979532,1747177859151,-536.9,0.0001452,2]
[360979533,1747177859232,-400.0,0.0001452,2]
[360979534,1747177859243,-492.5,0.0001452,2]
[360979535,1747177859253,-1287.19,0.0001452,2]
[360979536,1747177859263,-400.0,0.0001452,2]
[360979537,1747177859273,-534.83,0.0001452,2]
[360979538,1747177859282,-649.18,0.0001452,2]
[360979539,1747177859292,-7339.72,0.0001452,2]
[360979540,1747177859302,-400.0,0.0001452,2]
[360979541,1747177859311,-841.28,0.0001452,2]
[360979542,1747177859321,-400.0,0.0001452,2]
[360979543,1747177859330,-400.0,0.0001452,2]
[360979544,1747177859340,-2664.61,0.0001452,2]
[360979545,1747177859349,-1097.25,0.0001452,2]
[360979546,1747177859359,-400.0,0.0001452,2]
[360979547,1747177859368,-761.26,0.0001452,2]
[360979548,1747177859378,-400.0,0.0001452,2]
[360979549,1747177859387,-449.97,0.0001452,2]
[360979550,1747177859396,-400.0,0.0001452,2]
[360979551,1747177859406,-400.0,0.0001452,2]
[360979552,1747177859415,-492.67,0.0001452,2]
[360979553,1747177859424,-1265.85,0.0001452,2]
[360979554,1747177859433,-4308.11,0.0001452,2]
[360979555,1747177859443,-662.02,0.0001452,2]
[360979556,1747177859453,-400.0,0.0001452,2]
[360979557,1747177859463,-495.01,0.0001452,2]
[360979558,1747177859472,-454.83566614,0.0001452,2]
[360979559,1747177859481,-1719.35,0.0001452,2]
[360979560,1747177859491,-1791.39,0.0001452,2]
[360979561,1747177859501,-400.0,0.0001452,2]
[360979562,1747177859511,-1519.63,0.0001452,2]
[360979563,1747177859520,-400.0,0.0001452,2]